[Event "10th LCC FIDE Open 2018"]
[Site "London"]
[Date "2018.12.15"]
[Round "7"]
[White "Eggleston, David J"]
[Black "Georgescu, Lena"]
[Result "1/2-1/2"]
[ECO "B33"]
[WhiteElo "2397"]
[BlackElo "2162"]
[Annotator "NA"]
[PlyCount "150"]
[EventDate "2018.12.09"]
[EventType "swiss"]
[EventCountry "ENG"]
[SourceTitle "playchess.com"]
[Source "ChessBase"]
[SourceQuality "1"]
[TimeControl "40/5400+30:1800+30"]

1. e4 {[%emt 0:02:15]} c5 {[%emt 0:00:00]} 2. Nf3 {[%emt 0:00:04]} Nc6 {[%emt 0:00:00]} 3. d4 {[%emt 0:00:07]} cxd4 {[%emt 0:00:00]} 4. Nxd4 {[%emt 0:00:03]} Nf6 {[%emt 0:00:00]} 5. Nc3 {[%emt 0:00:04]} e5 {[%emt 0:00:00]} 6. Ndb5 {[%emt 0:00:04]} d6 {[%emt 0:00:01]} 7. Bg5 {[%emt 0:00:04]} a6 {[%emt 0:00:06]} 8. Na3 {[%emt 0:00:04]} b5 {[%emt 0:00:04]} 9. Nd5 {[%emt 0:00:03]} Be7 {[%emt 0:00:06]} 10. Bxf6 {[%emt 0:00:05]} Bxf6 {[%emt 0:00:06]} 11. c4 {[%emt 0:00:05]} b4 {[%emt 0:05:35] B33: Sicilian: Pelikan and Sveshnikov Variations} 12. Nc2 {[%emt 0:00:12]} O-O {[%emt 0:00:10]} 13. g3 {[%emt 0:00:45]} a5 {[%emt 0:00:05]} (13... Bg5 14. Bg2 a5 15. O-O Ne7 16. Nce3 Bxe3 17. Nxe3 Be6 18. Rc1 Nc6 19. Nf5 {1-0 (54) Harikrishna,P (2744)-Yu,Y (2751) Huaian 2017}) 14. h4 {[%emt 0:00:51]} a4 {[%emt 0:00:14]} 15. Bh3 {[%emt 0:12:28]} Be6 {[%emt 0:31:13]} 16. Kf1 {[%emt 0:03:26]} b3 {[%emt 0:18:34]} 17. Nce3 {[%emt 0:00:48] [#]} a3 $146 {[%emt 0:07:13]} ({Predecessor:} 17... Nd4 18. Kg2 Qb8 19. axb3 Qxb3 20. Qxb3 Nxb3 {½-½ (67) Istratescu,A (2596)-Tregubov,P (2584) Chartres 2017}) 18. Qxb3 {[%emt 0:05:48]} Nd4 {[%emt 0:00:12]} 19. Qc3 {[%emt 0:00:36]} axb2 {[%emt 0:00:11]} 20. Qxb2 {[%emt 0:00:25]} Qa5 {[%emt 0:02:59]} 21. Kg2 {[%emt 0:03:59]} Rfb8 {[%emt 0:00:46]} 22. Nxf6+ {[%emt 0:05:24]} gxf6 {[%emt 0:00:07]} 23. Qc1 {[%emt 0:00:29]} Qa3 {[%emt 0:04:33]} 24. Bxe6 {[%emt 0:06:33]} fxe6 {[%emt 0:02:43]} 25. Qxa3 {[%emt 0:00:31]} Rxa3 {[%emt 0:00:05]} 26. Rhb1 $14 {[%emt 0:00:50]} Rba8 {[%emt 0:12:58]} 27. Rb7 {[%emt 0:08:48]} Nb3 {[%emt 0:01:58]} 28. Re1 {[%emt 0:29:38]} Nc5 {[%emt 0:00:47]} 29. Re7 {[%emt 0:00:10]} R8a7 {[%emt 0:03:29]} 30. Rxa7 {[%emt 0:13:04]} Rxa7 {[%emt 0:00:02]} 31. Rd1 {[%emt 0:01:38]} Nxe4 {[%emt 0:03:31]} 32. Kf3 {[%emt 0:00:06]} f5 {[%emt 0:00:04]} 33. g4 {[%emt 0:00:04]} Rxa2 {[%emt 0:01:37]} 34. gxf5 {[%emt 0:00:07]} exf5 {[%emt 0:00:10]} 35. Nxf5 {[%emt 0:00:53]} Nd2+ {[%emt 0:00:51]} 36. Kg2 {[%emt 0:03:43]} Nxc4 {[%emt 0:00:44]} 37. Rc1 {[%emt 0:00:13]} Ra4 {[%emt 0:01:18]} 38. h5 {[%emt 0:00:37]} d5 {[%emt 0:03:50]} 39. Ne7+ {[%emt 0:00:14]} Kf7 {[%emt 0:00:10]} 40. Nxd5 {[%emt 0:00:04]} Ke6 {[%emt 0:00:56]} 41. Nc3 {[%emt 0:30:56]} Rb4 {[%emt 0:05:57]} 42. Ne4 {[%emt 0:00:00]} Nd6 {[%emt 0:06:58]} 43. Ng3 {[%emt 0:00:00]} h6 {[%emt 0:03:53]} 44. Rc6 {[%emt 0:00:00]} Rc4 {[%emt 0:03:43]} 45. Ra6 {[%emt 0:00:00]} Rf4 {[%emt 0:00:38]} 46. Kf1 {[%emt 0:00:00]} Kd5 {[%emt 0:02:19]} 47. Ke2 {[%emt 0:00:00]} Rb4 {[%emt 0:02:38]} 48. Ra8 {[%emt 0:00:00]} Rf4 {[%emt 0:01:05]} 49. Rh8 {[%emt 0:00:00]} Rf6 {[%emt 0:00:44]} 50. Rh7 {[%emt 0:00:00]} Ke6 {[%emt 0:00:31]} 51. f3 {[%emt 0:00:00]} Kd5 {[%emt 0:00:35]} 52. Ra7 {[%emt 0:00:00]} Rf4 {[%emt 0:01:09]} 53. Ra5+ {[%emt 0:00:00]} Ke6 {[%emt 0:00:22]} 54. Ra6 {[%emt 0:00:00]} Kd5 {[%emt 0:00:38]} 55. Nf1 {[%emt 0:00:00]} Nf5 {[%emt 0:03:01]} 56. Nd2 {[%emt 0:02:00]} Nd4+ {[%emt 0:02:35]} 57. Ke3 {[%emt 0:00:13]} Nf5+ {[%emt 0:01:03]} 58. Kd3 {[%emt 0:01:32]} Nd6 {[%emt 0:01:10]} 59. Ke3 {[%emt 0:02:44]} Nf5+ {[%emt 0:00:55]} 60. Kf2 {[%emt 0:00:02]} Nd6 {[%emt 0:00:35]} 61. Nf1 {[%emt 0:00:10]} Nf5 {[%emt 0:00:41]} 62. Ne3+ {[%emt 0:00:04]} Nxe3 {[%emt 0:00:06]} 63. Kxe3 {[%emt 0:00:02]} Rh4 {[%emt 0:00:38]} 64. Rxh6 {[%emt 0:00:03]} Rh3 {[%emt 0:01:00]} 65. Ke2 {[%emt 0:00:51]} Rh2+ {[%emt 0:00:52]} 66. Kf1 {[%emt 0:00:07]} e4 {[%emt 0:00:44]} 67. Kg1 {[%emt 0:01:07]} Rh4 {[%emt 0:00:15]} 68. Kf2 {[%emt 0:00:18]} exf3 {[%emt 0:00:30]} 69. Kxf3 {[%emt 0:00:02]} Ke5 {[%emt 0:00:54]} 70. Ra6 {[%emt 0:00:11]} Kf5 {[%emt 0:00:20]} 71. Ra5+ {[%emt 0:00:15]} Kf6 {[%emt 0:00:15]} 72. Kg3 {[%emt 0:00:08]} Rh1 {[%emt 0:00:19]} 73. h6 {[%emt 0:00:08]} Rxh6 {[%emt 0:00:09]} 74. Ra6+ {[%emt 0:00:02]} Kg7 {[%emt 0:00:08]} 75. Rxh6 {[%emt 0:00:03]} Kxh6 {[%emt 0:00:03]} 1/2-1/2

[Event "10th LCC FIDE Open 2018"]
[Site "London"]
[Date "2018.12.15"]
[Round "7"]
[White "Lewtak, Damian"]
[Black "Haribalu, V.."]
[Result "1/2-1/2"]
[ECO "D02"]
[WhiteElo "2393"]
[BlackElo "2208"]
[Annotator "NA"]
[PlyCount "49"]
[EventDate "2018.12.09"]
[EventType "swiss"]
[EventCountry "ENG"]
[SourceTitle "playchess.com"]
[Source "ChessBase"]
[SourceQuality "1"]
[TimeControl "40/5400+30:1800+30"]

1. d4 {[%emt 0:00:00]} d5 {[%emt 0:08:22]} 2. Bf4 {[%emt 0:00:00]} Nf6 {[%emt 0:09:15]} 3. e3 {[%emt 0:00:00]} c5 {[%emt 0:00:07]} 4. c3 {[%emt 0:00:00]} Nc6 {[%emt 0:00:08]} 5. Nd2 {[%emt 0:00:02]} e6 {[%emt 0:00:18]} 6. Ngf3 {[%emt 0:00:39]} Bd6 {[%emt 0:01:24]} 7. Bg3 {[%emt 0:00:07]} Qe7 {[%emt 0:07:51]} 8. Ne5 {[%emt 0:04:47]} Nd7 {[%emt 0:06:34] D02: 1 d4 d5 2 Nf3 sidelines, including 2...Nf6 3 g3 and 2...Nf6 3 Bf4} 9. Bb5 {[%emt 0:17:14]} Bxe5 {[%emt 0:31:28]} 10. dxe5 {[%emt 0:01:32]} a6 {[%emt 0:00:02]} 11. Qa4 $146 {[%emt 0:02:35]} ({Predecessor:} 11. Bxc6 bxc6 12. Qa4 Bb7 13. Bh4 f6 14. exf6 gxf6 15. c4 Rg8 16. O-O {1-0 (24) Robson,R (2663)-Onischuk,A (2664) Saint Louis 2016}) 11... Rb8 {[%emt 0:01:18]} 12. Bxc6 {[%emt 0:08:09]} bxc6 {[%emt 0:00:02]} 13. Qxc6 {[%emt 0:00:09]} O-O {[%emt 0:00:04]} 14. Rb1 {[%emt 0:10:42]} Rb5 {[%emt 0:08:37]} 15. c4 {[%emt 0:10:11]} Bb7 {[%emt 0:00:28]} 16. Qd6 {[%emt 0:00:20]} Qxd6 {[%emt 0:00:16]} 17. exd6 {[%emt 0:00:06]} dxc4 {[%emt 0:03:39]} 18. O-O {[%emt 0:07:28]} Rb8 {[%emt 0:06:23]} 19. Nxc4 {[%emt 0:07:51]} Bd5 {[%emt 0:01:31]} 20. Ne5 {[%emt 0:00:09]} Nxe5 {[%emt 0:00:05]} 21. Bxe5 {[%emt 0:00:04]} f6 {[%emt 0:00:25]} 22. Bc3 {[%emt 0:01:04]} Rd8 {[%emt 0:03:44]} 23. a4 {[%emt 0:19:23]} Rb7 {[%emt 0:00:12]} 24. Rfd1 {[%emt 0:03:18]} Bb3 $11 {[%emt 0:00:26]} 25. Rd2 {[%emt 0:01:25]} 1/2-1/2

[Event "10th LCC FIDE Open 2018"]
[Site "London"]
[Date "2018.12.15"]
[Round "7"]
[White "Bates, Richard A"]
[Black "Lim, Zhuo Ren"]
[Result "1-0"]
[ECO "E05"]
[WhiteElo "2372"]
[BlackElo "2184"]
[Annotator "ChessBase"]
[PlyCount "61"]
[EventDate "2018.12.09"]
[EventType "swiss"]
[EventCountry "ENG"]
[SourceTitle "playchess.com"]
[Source "ChessBase"]
[SourceQuality "1"]
[TimeControl "40/5400+30:1800+30"]

1. d4 {[%emt 0:00:00]} Nf6 {[%emt 0:18:53]} 2. Nf3 {[%emt 0:00:00]} d5 {[%emt 0:00:16]} 3. c4 {[%emt 0:00:05]} e6 {[%emt 0:00:13]} 4. g3 {[%emt 0:01:14]} Be7 {[%emt 0:00:21]} 5. Bg2 {[%emt 0:00:06]} O-O {[%emt 0:00:08]} 6. O-O {[%emt 0:00:13]} dxc4 {[%emt 0:00:22]} 7. Qc2 {[%emt 0:00:21]} a6 {[%emt 0:00:15]} 8. a4 {[%emt 0:00:27]} Bd7 {[%emt 0:00:06]} 9. Bg5 {[%emt 0:04:40]} Bc6 {[%emt 0:00:56]} 10. Nc3 {[%emt 0:00:08]} Bxf3 {[%emt 0:03:08]} 11. Bxf3 {[%emt 0:00:16]} Nc6 {[%emt 0:00:03]} 12. Bxc6 {[%emt 0:06:35]} bxc6 {[%emt 0:00:04]} 13. e3 {[%emt 0:00:07]} Rb8 {[%emt 0:02:17]} 14. a5 {[%emt 0:07:16]} Ne8 {[%emt 0:01:28]} 15. Bxe7 {[%emt 0:01:03]} Qxe7 {[%emt 0:00:06]} 16. Ne4 {[%emt 0:01:13]} Nd6 {[%emt 0:00:06]} 17. Nc5 {[%emt 0:07:34]} Rb5 {[%emt 0:01:03]} 18. Nxa6 {[%emt 0:09:18]} Ra8 {[%emt 0:00:05]} 19. Nc5 {[%emt 0:00:21]} Rbxa5 {[%emt 0:00:18]} 20. Rxa5 {[%emt 0:00:20]} Rxa5 {[%emt 0:00:06]} 21. b3 {[%emt 0:01:20]} cxb3 {[%emt 0:00:22]} 22. Nxb3 {[%emt 0:01:11]} Rb5 {[%emt 0:00:46]} 23. Ra1 {[%emt 0:02:22]} g6 {[%emt 0:02:55]} 24. Ra8+ {[%emt 0:09:28]} Kg7 {[%emt 0:00:07]} 25. Na5 {[%emt 0:00:10]} c5 {[%emt 0:03:15]} 26. dxc5 {[%emt 0:06:55]} Qf6 {[%emt 0:01:43]} 27. Nb3 {[%emt 0:01:08]} Ne4 {[%emt 0:00:31]} 28. Nd4 {[%emt 0:05:44]} Rb1+ {[%emt 0:10:20]} 29. Kg2 {[%emt 0:08:40]} Rb4 {[%emt 0:00:23]} 30. Qxe4 {[%emt 0:00:43]} e5 {[%emt 0:00:06]} 31. Qf3 {[%emt 0:02:58]} 1-0

[Event "10th LCC FIDE Open 2018"]
[Site "London"]
[Date "2018.12.15"]
[Round "7"]
[White "Lane, Gary W"]
[Black "McClement, Andrew"]
[Result "1-0"]
[ECO "B53"]
[WhiteElo "2353"]
[BlackElo "2182"]
[Annotator "NA"]
[PlyCount "97"]
[EventDate "2018.12.09"]
[EventType "swiss"]
[EventCountry "ENG"]
[SourceTitle "playchess.com"]
[Source "ChessBase"]
[SourceQuality "1"]
[TimeControl "40/5400+30:1800+30"]

1. e4 {[%emt 0:00:00]} c5 {[%emt 0:00:00]} 2. Nf3 {[%emt 0:00:00]} d6 {[%emt 0:00:05]} 3. d4 {[%emt 0:01:08]} cxd4 {[%emt 0:00:07]} 4. Qxd4 {[%emt 0:00:09]} Nc6 {[%emt 0:00:05]} 5. Bb5 {[%emt 0:00:05]} Bd7 {[%emt 0:00:06]} 6. Qd3 {[%emt 0:00:03] LiveBook: 263 Games} Nf6 {[%emt 0:01:20]} 7. c4 {[%emt 0:00:34] B53: Sicilian: 2...d6: Lines with Qxd4} g6 {[%emt 0:01:29]} 8. Nc3 {[%emt 0:00:09]} Bg7 {[%emt 0:00:06]} 9. O-O {[%emt 0:00:05]} O-O {[%emt 0:00:14]} 10. h3 {[%emt 0:00:04]} a6 {[%emt 0:00:37]} (10... Rc8 11. Be3 Nb4 12. Qe2 a6 13. Bxd7 Nxd7 14. Rac1 Bxc3 15. Rxc3 Nxa2 {½-½ (28) Malakhov,V (2691)-Safarli,E (2657) Brest 2018}) 11. Bxc6 {[%emt 0:00:59]} Bxc6 {[%emt 0:00:08]} 12. Nd4 {[%emt 0:00:41]} Rb8 {[%emt 0:21:22]} 13. Be3 {[%emt 0:04:15] [#]} Qa5 $146 {[%emt 0:12:48]} ({Predecessor:} 13... Nd7 14. Rfd1 Nc5 15. Qc2 Bd7 16. Rac1 Rc8 17. Qe2 Qe8 18. Nb3 Na4 19. Nxa4 Bxa4 20. Bd4 {1-0 (70) Bojkovic,N (2378)-Hou,Y (2578) Rogaska Slatina 2011}) 14. Rab1 {[%emt 0:21:35]} Rfc8 {[%emt 0:09:21]} 15. b4 {[%emt 0:02:29]} Qc7 {[%emt 0:00:29]} 16. Rfc1 {[%emt 0:01:29]} Be8 {[%emt 0:05:41]} 17. Nd5 {[%emt 0:03:29]} Nxd5 {[%emt 0:02:58]} 18. exd5 {[%emt 0:00:08]} Qd7 {[%emt 0:01:35]} 19. Qe4 {[%emt 0:02:35]} Rc7 {[%emt 0:06:35]} 20. b5 {[%emt 0:22:24]} Rbc8 {[%emt 0:11:46]} 21. bxa6 {[%emt 0:01:45]} bxa6 {[%emt 0:00:01]} 22. Nc6 {[%emt 0:00:13]} e5 {[%emt 0:02:41]} 23. f4 {[%emt 0:00:31]} f5 {[%emt 0:00:49]} 24. Qc2 {[%emt 0:00:05]} Qf7 {[%emt 0:02:10]} 25. fxe5 {[%emt 0:00:51]} dxe5 {[%emt 0:08:12]} 26. Bb6 {[%emt 0:01:19]} Rxc6 {[%emt 0:00:10]} 27. dxc6 {[%emt 0:00:13]} Bxc6 {[%emt 0:00:01]} 28. Qd2 {[%emt 0:04:09]} Be4 {[%emt 0:02:09]} 29. Rb3 {[%emt 0:00:05]} Rxc4 {[%emt 0:01:13]} 30. Rxc4 {[%emt 0:08:52]} Qxc4 {[%emt 0:00:01]} 31. Rc3 {[%emt 0:03:01]} Qd5 $14 {[%emt 0:00:02]} 32. Rc8+ {[%emt 0:04:24]} Kf7 {[%emt 0:00:01]} 33. Rc7+ {[%emt 0:00:07]} Kg8 {[%emt 0:00:19]} 34. Qg5 {[%emt 0:01:33]} Qd6 {[%emt 0:05:55]} 35. Rc8+ {[%emt 0:00:20]} Kf7 {[%emt 0:00:04]} 36. Bc5 {[%emt 0:00:33]} Qd7 {[%emt 0:00:30]} 37. Rd8 {[%emt 0:05:34]} Qc7 {[%emt 0:00:09]} 38. Bd6 {[%emt 0:01:41]} Qb7 {[%emt 0:03:35]} 39. Rb8 {[%emt 0:04:32]} Qd7 {[%emt 0:00:31]} 40. Rb6 {[%emt 0:02:15]} Bc6 {[%emt 0:03:51]} 41. Qc1 {[%emt 0:05:59]} Bb5 {[%emt 0:03:04]} 42. Qc5 {[%emt 0:01:53]} h5 {[%emt 0:13:16]} 43. Bxe5 {[%emt 0:12:16]} h4 {[%emt 0:05:25]} 44. Bxg7 {[%emt 0:02:53]} Kxg7 {[%emt 0:00:02]} 45. Qe5+ {[%emt 0:00:14]} Kh6 {[%emt 0:01:44]} 46. Qf6 {[%emt 0:00:26]} Qd1+ {[%emt 0:01:03]} 47. Kh2 {[%emt 0:00:06]} Qh5 {[%emt 0:00:48]} 48. Rb8 {[%emt 0:00:11]} Qg5 {[%emt 0:00:20]} 49. Rh8# {[%emt 0:00:07]} 1-0

[Event "10th LCC FIDE Open 2018"]
[Site "London"]
[Date "2018.12.15"]
[Round "7"]
[White "Sowray, Peter J"]
[Black "Stone, Andrew M"]
[Result "1/2-1/2"]
[ECO "E51"]
[WhiteElo "2342"]
[BlackElo "2157"]
[Annotator "NA"]
[PlyCount "75"]
[EventDate "2018.12.09"]
[EventType "swiss"]
[EventCountry "ENG"]
[SourceTitle "playchess.com"]
[Source "ChessBase"]
[SourceQuality "1"]
[TimeControl "40/5400+30:1800+30"]

1. d4 {[%emt 0:00:00]} d5 {[%emt 0:00:00]} 2. c4 {[%emt 0:00:00]} e6 {[%emt 0:00:00]} 3. Nc3 {[%emt 0:00:00]} Bb4 {[%emt 0:00:00]} 4. a3 {[%emt 0:00:00]} Bxc3+ {[%emt 0:00:48]} 5. bxc3 {[%emt 0:00:00]} c6 {[%emt 0:00:44] LiveBook: 10 Games} 6. e3 {[%emt 0:03:24]} Nf6 {[%emt 0:00:55]} 7. Nf3 {[%emt 0:05:47]} O-O {[%emt 0:01:18]} 8. Bd3 {[%emt 0:01:07] E51: Nimzo-Indian: Rubinstein: 4...0-0 5 Nf3 d5} b6 {[%emt 0:01:30]} 9. Ne5 $146 {[%emt 0:06:05]} ({Predecessor:} 9. cxd5 cxd5 10. Qe2 Nc6 11. O-O Na5 12. a4 Re8 13. Ne5 Ne4 14. f3 Nd6 15. Ba3 Bb7 16. Bxd6 Qxd6 {1-0 (28) Ivanchuk,V (2769)-Wang,H (2726) Istanbul 2012}) 9... Nfd7 {[%emt 0:10:00]} 10. f4 {[%emt 0:07:48]} Nxe5 {[%emt 0:03:23]} 11. fxe5 {[%emt 0:00:07]} Qh4+ {[%emt 0:02:09]} 12. g3 {[%emt 0:00:51]} Qh3 {[%emt 0:01:03]} 13. Ra2 {[%emt 0:01:53]} Ba6 {[%emt 0:07:03]} 14. Bf1 {[%emt 0:07:54]} Qf5 {[%emt 0:02:15]} 15. cxd5 {[%emt 0:01:58]} cxd5 {[%emt 0:05:50]} 16. Bxa6 {[%emt 0:01:04]} Nxa6 {[%emt 0:00:15]} 17. Rf2 {[%emt 0:01:27]} Qg6 {[%emt 0:11:10]} 18. O-O {[%emt 0:03:38]} Rac8 {[%emt 0:10:12]} 19. Qe2 {[%emt 0:11:39]} Nb8 {[%emt 0:03:34]} 20. Bd2 {[%emt 0:03:27]} f6 {[%emt 0:08:43]} 21. exf6 {[%emt 0:04:47]} Rxf6 {[%emt 0:00:17]} 22. e4 {[%emt 0:02:16]} Rxf2 {[%emt 0:04:01]} 23. Rxf2 {[%emt 0:02:00]} Qxe4 {[%emt 0:02:20]} 24. Qxe4 {[%emt 0:03:58]} dxe4 {[%emt 0:00:05]} 25. Re2 {[%emt 0:01:13]} Nd7 {[%emt 0:01:23]} 26. Rxe4 {[%emt 0:00:12]} Kf7 {[%emt 0:00:25]} 27. Kf1 {[%emt 0:01:14]} Nf6 {[%emt 0:01:29]} 28. Rf4 {[%emt 0:01:39]} Rc4 {[%emt 0:06:35]} 29. Ke2 {[%emt 0:00:47]} b5 {[%emt 0:02:58]} 30. Kd3 {[%emt 0:01:07]} Ra4 {[%emt 0:01:44]} 31. Bc1 {[%emt 0:00:55]} Rc4 {[%emt 0:00:22]} 32. Rf3 {[%emt 0:02:44]} h6 {[%emt 0:01:08]} 33. g4 {[%emt 0:02:02]} Kg6 {[%emt 0:07:51]} 34. h3 {[%emt 0:00:52]} a6 $11 {[%emt 0:00:37]} 35. Bd2 {[%emt 0:03:24]} Ra4 {[%emt 0:00:39]} 36. Bc1 {[%emt 0:00:07]} Rc4 {[%emt 0:00:07]} 37. Bd2 {[%emt 0:01:08]} Ra4 {[%emt 0:00:02]} 38. Bc1 {[%emt 0:00:40]} 1/2-1/2

[Event "10th LCC FIDE Open 2018"]
[Site "London"]
[Date "2018.12.15"]
[Round "7"]
[White "Taylor, Adam C"]
[Black "Burrows, Martin P"]
[Result "1-0"]
[ECO "A27"]
[WhiteElo "2331"]
[BlackElo "2134"]
[Annotator "NA"]
[PlyCount "77"]
[EventDate "2018.12.09"]
[EventType "swiss"]
[EventCountry "ENG"]
[SourceTitle "playchess.com"]
[Source "ChessBase"]
[SourceQuality "1"]
[TimeControl "40/5400+30:1800+30"]

1. g3 {[%emt 0:00:14]} e5 {[%emt 0:00:25]} 2. c4 {[%emt 0:00:07]} Nc6 {[%emt 0:00:24]} 3. Nc3 {[%emt 0:00:08]} f5 {[%emt 0:00:46]} 4. Nf3 {[%emt 0:00:06]} Nf6 {[%emt 0:04:34] A27: English Opening: Three Knights Variation} (4... d6 5. d4 e4 6. d5 Ne5 7. Nxe5 dxe5 8. g4 g6 9. gxf5 gxf5 10. Rg1 Nf6 11. Bg5 Be7 12. e3 Rg8 {1-0 (27) Aronian,L (2793)-Ivanchuk,V (2738) Leuven 2017}) 5. d4 {[%emt 0:00:07]} e4 {[%emt 0:04:24]} 6. Nh4 {[%emt 0:00:05]} d5 {[%emt 0:01:00]} 7. Bg5 {[%emt 0:00:45]} Be7 {[%emt 0:04:36]} 8. Ng2 {[%emt 0:09:22]} dxc4 {[%emt 0:04:13]} 9. e3 {[%emt 0:00:05]} Be6 {[%emt 0:02:02]} 10. Nf4 {[%emt 0:01:04]} Bf7 {[%emt 0:00:52]} 11. Qa4 {[%emt 0:01:12]} O-O {[%emt 0:05:10]} 12. Bxc4 {[%emt 0:00:42]} Qc8 $146 {[%emt 0:07:48]} 13. Rc1 {[%emt 0:06:48]} h6 {[%emt 0:04:48]} 14. Bxf6 {[%emt 0:07:27]} Bxf6 {[%emt 0:00:14]} 15. Ncd5 {[%emt 0:05:14]} Bd8 {[%emt 0:01:53]} (15... Qd8 $16 {keeps fighting.}) 16. Ng6 {[%emt 0:00:25]} Re8 {[%emt 0:00:51]} 17. Ndf4 {[%emt 0:00:29]} Qd7 {[%emt 0:08:56]} 18. Bxf7+ {[%emt 0:05:32]} Qxf7 {[%emt 0:00:18]} 19. Rxc6 {[%emt 0:00:06]} (19. Qb5 $18 {and White stays clearly on top.} Bg5 20. Qxb7 Bxf4 21. Nxf4) 19... bxc6 {[%emt 0:01:00]} 20. Ne5 {[%emt 0:00:05]} Qf6 {[%emt 0:05:56]} 21. O-O {[%emt 0:10:54]} Be7 {[%emt 0:00:47]} 22. Rc1 {[%emt 0:07:49]} Bd6 {[%emt 0:00:54]} 23. Rxc6 {[%emt 0:00:37]} Kh7 {[%emt 0:03:31]} 24. Qc4 {[%emt 0:06:21]} Qf8 {[%emt 0:13:53]} 25. Qd5 {[%emt 0:20:00]} Bxe5 {[%emt 0:08:24]} 26. dxe5 {[%emt 0:00:04]} Rad8 {[%emt 0:01:11]} 27. Qa5 {[%emt 0:00:05]} Qe7 {[%emt 0:02:21]} 28. e6 {[%emt 0:03:19]} Rd1+ {[%emt 0:02:27]} 29. Kg2 {[%emt 0:00:01]} Qf6 {[%emt 0:00:10]} 30. Rxc7 {[%emt 0:01:29]} Qxb2 {[%emt 0:01:54]} 31. Qxf5+ {[%emt 0:00:41]} Kh8 {[%emt 0:02:53]} 32. Ng6+ {[%emt 0:00:28]} Kg8 {[%emt 0:00:07]} 33. Qf7+ {[%emt 0:01:30]} Kh7 {[%emt 0:00:03]} 34. Qxe8 {[%emt 0:01:17]} Qa1 {[%emt 0:03:31]} 35. e7 {[%emt 0:03:08]} Rg1+ {[%emt 0:04:18]} 36. Kh3 {[%emt 0:00:01]} Qf1+ {[%emt 0:00:44]} 37. Kh4 {[%emt 0:00:13]} Rh1 {[%emt 0:00:40]} 38. Qh8+ {[%emt 0:00:12]} Kxg6 {[%emt 0:00:07]} 39. e8=Q+ {[%emt 0:00:10]} 1-0

[Event "10th LCC FIDE Open 2018"]
[Site "London"]
[Date "2018.12.15"]
[Round "7"]
[White "Derakhshani, Borna"]
[Black "Sperling, Lennart"]
[Result "0-1"]
[ECO "A11"]
[WhiteElo "2325"]
[BlackElo "2116"]
[Annotator "NA"]
[PlyCount "104"]
[EventDate "2018.12.09"]
[EventType "swiss"]
[EventCountry "ENG"]
[SourceTitle "playchess.com"]
[Source "ChessBase"]
[SourceQuality "1"]
[TimeControl "40/5400+30:1800+30"]

1. Nf3 {[%emt 0:12:47]} Nf6 {[%emt 0:00:00]} 2. c4 {[%emt 0:00:45]} c6 {[%emt 0:00:00]} 3. Nc3 {[%emt 0:02:35]} d5 {[%emt 0:00:00]} 4. e3 {[%emt 0:00:04]} e6 {[%emt 0:00:13]} 5. b3 {[%emt 0:01:30]} Nbd7 {[%emt 0:01:13]} 6. Bb2 {[%emt 0:01:12]} Bd6 {[%emt 0:01:55]} 7. d4 {[%emt 0:00:59] A11: English Opening: 1...c6} Qe7 {[%emt 0:02:26]} 8. Qc2 {[%emt 0:05:13]} b6 {[%emt 0:03:17]} 9. Bd3 {[%emt 0:01:34]} Bb7 {[%emt 0:00:16]} 10. O-O {[%emt 0:03:48]} O-O {[%emt 0:01:11]} 11. Rfe1 {[%emt 0:02:44]} Rac8 {[%emt 0:08:11]} 12. a4 $146 {[%emt 0:12:24]} ({Predecessor:} 12. e4 dxc4 13. Bxc4 e5 14. Rad1 Rcd8 15. g3 b5 16. Bf1 a6 17. a4 Rfe8 18. Bg2 {1-0 (58) Khismatullin,D (2638)-Andriasian,Z (2604) St Petersburg 2012}) 12... Bb4 {[%emt 0:06:36]} 13. Re2 {[%emt 0:12:21]} c5 {[%emt 0:04:14]} 14. Na2 {[%emt 0:01:25]} Ba5 {[%emt 0:03:11]} 15. Ne5 {[%emt 0:01:56]} h6 {[%emt 0:05:33]} 16. Ba3 {[%emt 0:05:48]} Rfd8 {[%emt 0:00:59]} 17. f4 {[%emt 0:04:01]} Ne4 {[%emt 0:09:44]} 18. Qb2 {[%emt 0:08:40]} Bb4 {[%emt 0:02:26]} 19. Rd1 {[%emt 0:05:09]} Bxa3 {[%emt 0:06:51]} 20. Qxa3 {[%emt 0:00:01]} Ndf6 {[%emt 0:07:19]} 21. a5 {[%emt 0:06:03]} Qc7 {[%emt 0:04:31]} 22. cxd5 {[%emt 0:00:57]} Bxd5 {[%emt 0:07:33]} 23. Rc1 {[%emt 0:00:30]} Qb8 {[%emt 0:01:29]} 24. Ba6 {[%emt 0:02:29]} Bb7 {[%emt 0:00:22]} 25. Bxb7 {[%emt 0:00:23]} Qxb7 {[%emt 0:00:05]} 26. a6 {[%emt 0:01:06]} Qa8 {[%emt 0:04:53]} 27. Rec2 {[%emt 0:00:42]} Nd5 {[%emt 0:00:35]} 28. dxc5 {[%emt 0:02:00]} Rxc5 $17 {[%emt 0:01:45]} ({Resist} 28... bxc5 29. Re1 $17) ({Don't do} 28... Nxc5 29. b4 $15) (28... Nxe3 29. Re2) 29. Rxc5 {[%emt 0:00:10]} Nxc5 {[%emt 0:00:20]} 30. b4 {[%emt 0:00:43]} Ne4 {[%emt 0:00:59]} 31. Nc6 {[%emt 0:01:01]} Nxf4 {[%emt 0:07:41]} 32. Nxd8 {[%emt 0:01:12]} Ne2+ {[%emt 0:00:13]} 33. Kf1 {[%emt 0:00:02]} Nxc1 {[%emt 0:00:17]} 34. Nxc1 {[%emt 0:01:34]} Qxd8 {[%emt 0:00:06]} 35. Nd3 {[%emt 0:00:10]} Qd5 {[%emt 0:01:34]} 36. Ke1 {[%emt 0:01:48]} Qc4 {[%emt 0:04:11]} 37. Ne5 {[%emt 0:00:50]} Qc2 {[%emt 0:00:57]} 38. Qd3 {[%emt 0:00:01]} Qf2+ {[%emt 0:01:14]} 39. Kd1 {[%emt 0:00:01]} Qxg2 {[%emt 0:00:13]} 40. Qd8+ {[%emt 0:02:01]} Kh7 {[%emt 0:00:02]} 41. Qd4 {[%emt 0:30:05]} f6 {[%emt 0:07:23]} 42. Nd7 {[%emt 0:00:00]} e5 {[%emt 0:07:47]} 43. Nf8+ {[%emt 0:00:00]} Kg8 {[%emt 0:00:30]} 44. Qd8 {[%emt 0:00:00]} Qf1+ {[%emt 0:02:30]} 45. Kc2 {[%emt 0:00:00]} Qc4+ {[%emt 0:01:10]} 46. Kd1 {[%emt 0:00:00]} Qd3+ {[%emt 0:03:29]} 47. Qxd3 {[%emt 0:00:00]} Nf2+ {[%emt 0:00:04]} 48. Ke2 {[%emt 0:00:00]} Nxd3 {[%emt 0:00:02]} 49. Nd7 {[%emt 0:00:00]} Nxb4 {[%emt 0:00:07]} 50. Nxb6 {[%emt 0:00:00]} Nxa6 {[%emt 0:00:13]} 51. Nc8 {[%emt 0:00:00]} Nc5 {[%emt 0:00:39]} 52. Nxa7 {[%emt 0:00:00]} Kf7 {[%emt 0:00:15]} 0-1